Workbook

Sheet Sheet1
A2: NAME | F2: BUSINESS
A3: ADDRESS | F3: CITY | J3: STATE | L3: ZIP
A4: PHONE | F4: EMAIL
A5: CELL | F5: TAX ID#
A6: TO QUALIFY YOU MUST HAVE A TAX ID# . WHOLESALE DISCOUNT WILL BE CALCULATED AT THE END.
A8: PRODUCT | D8: DESCRIPTION | J8: SIZE | K8: RETAIL | L8: WHSLE | O8: QTY | P8: COST
A9: SALVES, OINTMENTS, BALMS | L9: 25% | M9: 30% | N9: 35%
A10: Bear Medicine Intense Pain Formula with CBD Roll-on | D10: Bear Oil base with 11 herbs & 10 essential oils plus 200 mg. CBD per oz., magnesium oil, & MSM. Apply topically to relieve severe pain from arthritis, fibromyalgia and speed healing from broken bones, muscle sprains/strains. Contains no thickeneing agents. | J10: 1 oz. | K10: 19.00 | L10: =K10-(K10*25%) -> 14.25 | M10: =K10-(K10*30%) -> 13.30 | N10: =K10-(K10*35%) -> 12.35 | P10: =K10*O10 -> 0
J11: 3 oz | K11: 42.00 | L11: 31.50 | M11: 29.40 | N11: 27.30 | P11: 0
A12: Bear Oil Salve (1.8 oz) | D12: We render pure bear fat and then add a mixture of several different herbs and chaga. It is used to treat: Eczema, Psoriasis. Mild Arthritis and joint pain | J12: 2 oz | K12: 20.00 | L12: =K12-(K12*25%) -> 15.00 | M12: =K12-(K12*30%) -> 14.00 | N12: =K12-(K12*35%) -> 13.00 | P12: 0
A13: Bear Oil Salve (9 oz) | J13: 9 oz | K13: 85.00 | L13: =K13-(K13*25%) -> 63.75 | M13: =K13-(K13*30%) -> 59.50 | N13: =K13-(K13*35%) -> 55.25 | P13: 0
A14: Black Magic Drawing Salve | D14: Contains Indian Clay, activated charcoal to draw out toxins. Also contains herbal extracts and essential oils to improve healing. | J14: 2 oz | K14: 20.00 | L14: 15.00 | M14: 14.00 | N14: 13.00 | P14: 0
A15: Cedar Swamp | D15: Natural vapor rub, beneficial for cough and chest congestion suppression. | J15: 2 oz | K15: 20.00 | L15: 15.00 | M15: 14.00 | N15: 13.00 | P15: 0
A16: Goldenseal Ointment | D16: Naturally healing antiseptic ointment containing golden seal plus several additional herbal extracts | J16: 1.8 oz | K16: 20.00 | L16: 15.00 | M16: 14.00 | N16: 13.00 | P16: 0
A17: Wizard's Balm | D17: Works well to heal from all forms of skin irritations including cuts, scrapes, burns, insect bites & stings, and rashes. | J17: 2 oz | K17: 20.00 | L17: 15.00 | M17: 14.00 | N17: 13.00 | P17: 0
K18: SUBTOTAL | P18: =SUM(P10:P17) -> 0
A19: HERBAL SUPPLEMENTS
A20: Ashwaghanda Root | D20: Helps fight cancer, anti-inflammatory, improves thyroid function, relieves adrenal fatigue, combats stress & anxiety, improves depression, balances blood sugar levels. Reduces brain degeneration & improves memory. Boosts Immune Function, increases stamina/endurance, helps increase muscle strength, helps improve sexual function/fertility | J20: 1 oz | K20: 15.00 | L20: =K20-(K20*25%) -> 11.25 | M20: =K20-(K20*30%) -> 10.50 | N20: =K20-(K20*35%) -> 9.75 | P20: =K20*O20 -> 0
A21: Astragulus | D21: Immune system booster. Regulates diabetes. Beneficial for asthma & chemotherapy treatment. | J21: 1 oz | K21: 15.00 | L21: =K21-(K21*25%) -> 11.25 | M21: =K21-(K21*30%) -> 10.50 | N21: =K21-(K21*35%) -> 9.75 | P21: 0
A22: Barberry Root | D22: Contains berberine; protects against bacteria, viruses & fungi; natural antibiotic. | J22: 1 oz | K22: 15.00 | L22: 11.25 | M22: 10.50 | N22: 9.75 | P22: 0
A23: Calendula | D23: Aids healing wounds & burns, rashes. Relaxes muscle spasms. Oral health. Lymphatic cleanser. | J23: 1 oz | K23: 15.00 | L23: 11.25 | M23: 10.50 | N23: 9.75 | P23: 0
A24: Cat's Claw | D24: Immune system booster. May help lower blood pressure. Chronic fatigue syndrome. Treats arthritis, HIV, herpes, May be beneficial for Crohn’s disease. A bridge balancer between the physical & spiritual worlds | J24: 1 oz | K24: 15.00 | L24: 11.25 | M24: 10.50 | N24: 9.75 | P24: 0
A25: Chaga (Triple Extracted) | D25: Immune system booster. Improves cognitive function. Beneficial in treating cancer. Blood purifier. Superfood. | J25: 1 oz | K25: 15.00 | L25: 11.25 | M25: 10.50 | N25: 9.75 | P25: 0
A26: Chickweed | D26: Skin issues, cuts, wounds, burns, etc. Spring tonic. Constipation. Urinary tract infections. | J26: 1 oz | K26: 15.00 | L26: 11.25 | M26: 10.50 | N26: 9.75 | P26: 0
A27: Cilantro | D27: Detoxifier, binds and cleans system of heavy metals. Protects against oxidative stress, cardiovascular disease, colon cancer, and food poisoning. Prevents neurological inflammation and urinary tract infections. Lowers anxiety and improves sleep. Lowers blood sugar. | J27: 1 oz | K27: 15.00 | L27: 11.25 | M27: 10.50 | N27: 9.75 | P27: 0
A28: Colts Foot Leaf | D28: Respiratory conditions such as asthma, silicosis & emphysema, recovery from smoking. Do not use if pregnant. | J28: 1 oz | K28: 15.00 | L28: 11.25 | M28: 10.50 | N28: 9.75 | P28: 0
A29: Damiana Leaf | D29: Anti-depressant, increases libido for men & women, relieves mucus congestion | J29: 1 oz | K29: 15.00 | L29: 11.25 | M29: 10.50 | N29: 9.75 | P29: 0
A30: Dandelion Root | D30: For arthritis, gout, edema, hepatitis, high blood pressure, high cholesterol, abnormal blood sugar levels, liver problems, UTI’s, blood cleansing herb | J30: 1 oz | K30: 15.00 | L30: 11.25 | M30: 10.50 | N30: 9.75 | P30: 0
A31: Devil's Claw Root | D31: Arthritis, lower back, knee and hip pain, osteoarthritis, rheumatoid arthritis, gout, bursitis, tendonitis, loss of appetite and digestive disorders. | J31: 1 oz | K31: 15.00 | L31: 11.25 | M31: 10.50 | N31: 9.75 | P31: 0
A32: Dong Quai Root | D32: Sometimes called Female Ginseng. Anti-inflammatory. May relieve pain or relax muscles. May balance hormonal issues. Beneficial for female health issues. Detoxifier. May lessen anxiety, stress and depression. | J32: 1 oz | K32: 15.00 | L32: 11.25 | M32: 10.50 | N32: 9.75 | P32: 0
A33: Echinacea | D33: Infections, wounds, allergies, swollen glands, gum disease, natural cancer treatment, colds, flu, boosts immune system, pain reliever, laxative. | J33: 1 oz | K33: 15.00 | L33: 11.25 | M33: 10.50 | N33: 9.75 | P33: 0
A34: Elecampane | D34: Respiratory complaints (bronchitis & asthma, chronic mucus, coughs, digestive weakness | J34: 1 oz | K34: 15.00 | L34: 11.25 | M34: 10.50 | N34: 9.75 | P34: 0
A35: Eleuthero Root | D35: Increases mental alertness & performance, enhances concentration, increase energy & stamina, reduces stress & fatigues, reduces insomnia, immune enhancer, improves detoxification | J35: 1 oz | K35: 15.00 | L35: 11.25 | M35: 10.50 | N35: 9.75 | P35: 0
A36: Fireweed | D36: Tones the intestinal tract. Beneficial for diarrhea, colic, gastritis, irritable bowel syndrome, candida, prostrate, and inflammation of the digestive system. | J36: 1 oz | K36: 15.00 | L36: 11.25 | M36: 10.50 | N36: 9.75 | P36: 0
A37: Gingko Biloba | D37: Anti-inflammatory. Antioxidant. Improves conitive function and memory. Increases energy. Natural remedy for asthma, ADHD and dementia. | J37: 1 oz | K37: 15.00 | L37: 11.25 | M37: 10.50 | N37: 9.75 | P37: 0
A38: Golden Rod | D38: Tones the urinary system and bladder. Useful for UTIs. Beneficial for ragweed allergies. Expectorant. Diaphoretic. | J38: 1 oz | K38: 15.00 | L38: 11.25 | M38: 10.50 | N38: 9.75 | P38: 0
A39: Golden Seal | D39: Natural antibiotic. Beneficial for colds, middle ear infection, sore throat, stimulates the liver & gall bladder, mouthwash for sore mouths/gums | J39: 1 oz | K39: 15.00 | L39: 11.25 | M39: 10.50 | N39: 9.75 | P39: 0
A40: Gotu Kola | D40: Accelerates healing; sluggish digestion; fever; incontinence; abcesses; ulcers; decreases adrenal enlargement; high blood pressure; jaundice; rheumatism; varicose veins. Do not use if pregnant. | J40: 1 oz | K40: 15.00 | L40: 11.25 | M40: 10.50 | N40: 9.75 | P40: 0
A41: Hawthorn | D41: An adaptogen for the circulatory system, high blood pressure, low blood pressure, beneficial for healthy arteries, arrhythmias, cardiovascular tonic, angina, improves overall cardiac function | J41: 1 oz | K41: 15.00 | L41: 11.25 | M41: 10.50 | N41: 9.75 | P41: 0
A42: Heal All | D42: For wounds, insect bites, oral herpes, impedes bleeding, conjunctivitis/pink eye, hemorrhoids, tonic, bleeding gums, high blood pressure. | J42: 1 oz | K42: 15.00 | L42: 11.25 | M42: 10.50 | N42: 9.75 | P42: 0
A43: Hops | D43: Indigestion, nervous exhaustion, anxiety, induce sleep, beneficial for neuralgias, menopause. Respiratory complaints (bronchitis & asthma, chronic mucus, coughs, digestive weakness | J43: 1 oz | K43: 15.00 | L43: 11.25 | M43: 10.50 | N43: 9.75 | P43: 0
A44: Horsetail | D44: Supports body structures that utilizes silica, nourishes bones, cartilage, hair, nails, skin, mucous membranes, all structures with collagen; beneficial for UTI’s; reduces stretch marks used externally. | J44: 1 oz | K44: 15.00 | L44: 11.25 | M44: 10.50 | N44: 9.75 | P44: 0
A45: Hyssop | D45: Indigestion, flu, colds, as a gargle for sore throat, low grade viral fevers. raises blood pressure | J45: 1 oz | K45: 15.00 | L45: 11.25 | M45: 10.50 | N45: 9.75 | P45: 0
A46: Japanese Knotweed | D46: Beneficial for Lyme’s disease & its coinfections, source of resveratrol, antibacterial, preventative for Alzheimer’s & dementia | J46: 1 oz | K46: 15.00 | L46: 11.25 | M46: 10.50 | N46: 9.75 | P46: 0
A47: Licorice Root | D47: Adrenal fatigue. Leaky gut. Heartburn/acid reflux. Immune enhancer. Cough or sore throat. Women’s issues. Hot flashes. Pain relief. | J47: 1 oz | K47: 15.00 | L47: 11.25 | M47: 10.50 | N47: 9.75 | P47: 0
A48: Milk Thistle | D48: Used for most liver diseases, including cirrhosis & hepatitis , enhances detoxification | J48: 1 oz | K48: 15.00 | L48: 11.25 | M48: 10.50 | N48: 9.75 | P48: 0
A49: Milky Oats | D49: Used as a tonic to increase strength of mind, body & Spirit, useful against depression, menopause, drug withdrawal; sexual tonic (with damiana & nettle root); relieves nervous tension & anxiety; lessens symptoms of MS by reducing fatigue, strengthens muscles & improves nerve function | J49: 1 oz | K49: 15.00 | L49: 11.25 | M49: 10.50 | N49: 9.75 | P49: 0
A50: Mugwort | D50: Promotes proper digestion & appetite, regulates menstruation, reduces anxiety, ritual purification(smudging), dream recall | J50: 1 oz | K50: 15.00 | L50: 11.25 | M50: 10.50 | N50: 9.75 | P50: 0
A51: Mullein Flower | D51: Remedy for coughs, bronchial congestion, chest colds, allergies & stress, glandular imbalances, effective treatment for ear pain/infection caused by upper respiratory congestion. Not for infections caused by swimmers ear or eardrum perforation. | J51: 1 oz | K51: 15.00 | L51: 11.25 | M51: 10.50 | N51: 9.75 | P51: 0
A52: Nettle | D52: nervous system, respiratory tract, digestive & endocrine systems; benefits anemia, leg & menstrual cramps, edema, preventive & treatment for prostate issues. | J52: 1 oz | K52: 15.00 | L52: 11.25 | M52: 10.50 | N52: 9.75 | P52: =K52*O52 -> 0
A53: Oregon Grape Root | D53: Contains berberine; protects against bacteria, viruses & fungi; natural antibiotic | J53: 1 oz | K53: 15.00 | L53: 11.25 | M53: 10.50 | N53: 9.75 | P53: 0
A54: Osha | D54: Effective for bronchitis, sore throats, menstrual cramps, digestive disorders, fevers, colds, dry/wet coughs, toothaches, viral infections; protection from negative influences, mystical dreaming. | J54: 1 oz | K54: 15.00 | L54: 11.25 | M54: 10.50 | N54: 9.75 | P54: 0
A55: Pau De Arco | D55: Beneficial for arthritis, pain, prostrate inflammation. Naturally reduce pain from cancer. Effective against candida. Anti-inflammatory. Helps heal ulcers. Beneficial for chemotherapy. Antiviral. Detoxifier. Beneficial in tea form. | J55: 1 oz | K55: 15.00 | L55: 11.25 | M55: 10.50 | N55: 9.75 | P55: 0
A56: Peppermint | D56: Relieves nausea, heartburn and indigestion. Beneficial for irritable bowel syndrome. Digestive aid. Relaxant. | J56: 1 oz | K56: 15.00 | L56: 11.25 | M56: 10.50 | N56: 9.75 | P56: 0
A57: Plantain | D57: Used topically for wounds, insect bites, stings, in cough syrups, soothing to the urinary tract (UTI’s), respiratory & gastrointestinal tract, blood cleanser. | J57: 1 oz | K57: 15.00 | L57: 11.25 | M57: 10.50 | N57: 9.75 | P57: 0
A58: Prickly Ash Bark | D58: A stimulating & tonifying alterative for convalescence or the elderly, chronic rheumatic conditions, gastric, irritation (gas/burping), loss of sensitivity in injured nerves & immune system support, viral & bacterial infections | J58: 1 oz | K58: 15.00 | L58: 11.25 | M58: 10.50 | N58: 9.75 | P58: 0
A59: Red Clover | D59: Reduces hot flashes, spasmodic coughs/croup or whooping cough, blood & lymphatic cleanser, eczema/psoriasis, helpful maintaining bone density. | J59: 1 oz | K59: 15.00 | L59: 11.25 | M59: 10.50 | N59: 9.75 | P59: 0
A60: Reishi | D60: Inflammation, fatigue, food allergies, infections (urinary tract, bronchitis, respiratory infections, etc), liver disease, asthma, digestive problems, leaky gut, stomach ulcers, diabetes, viruses (flu, HIV/AIDS, hepatitis), hypertension, insomnia, anxiety, depression, hormonal balance, fights tumors (natural cancer treatment), liver detox, boosts immune system | J60: 1 oz | K60: 15.00 | L60: 11.25 | M60: 10.50 | N60: 9.75 | P60: 0
A61: Sage | D61: Digestive aid, lowers cholesterol, liver tonic, mild hormonal stimulant, dries up mother’s milk, sore throat cold/flu fighter, laryngitis, tonsillitis. | J61: 1 oz | K61: 15.00 | L61: 11.25 | M61: 10.50 | N61: 9.75 | P61: 0
A62: Saw Palmetto | D62: Underweight or wasting conditions, prostrate, UTIs, impotence & frigidity, mild sedative. | J62: 1 oz | K62: 15.00 | L62: 11.25 | M62: 10.50 | N62: 9.75 | P62: 0
A63: Skullcap | D63: Beneficial for stress and anxiety relief. Analgesic pain releif. Nervous disorders. Liver detoxifier. Diabetes management. Reduces cholesterol. Supports weight loss. Beneficial for cancer prevention. | J63: 1 oz | K63: 15.00 | L63: 11.25 | M63: 10.50 | N63: 9.75 | P63: 0
A64: St Johns Wort | D64: Beneficial for nerve pain, shingles, night terrors, Seasonal Affected Disorder (SAD), hemorrhoids; externally for burns, bruises, muscular pain, diaper rash & cradle cap; depression, fear, insomnia, anxiety, anorexia | J64: 1 oz | K64: 15.00 | L64: 11.25 | M64: 10.50 | N64: 9.75 | P64: 0
A65: Teasel Root | D65: Beneficial in treating Lyme disease, an analgesic for pain relief, for chronic muscle inflammation | J65: 1 oz | K65: 15.00 | L65: 11.25 | M65: 10.50 | N65: 9.75 | P65: 0
A66: Turmeric (BKK ) 4 times more curcumin as Hawaiian Red | D66: Gastric ulcers, digestive aide, flatulence, jaundice, anticancer, depression, arthritis management, diabetes management, Crohn’s disease, cholesterol regulator, natural painkiller. | J66: 1 oz | K66: 15.00 | L66: 11.25 | M66: 10.50 | N66: 9.75 | P66: 0
A67: Thyme | D67: Nail fungus, Parasites, Muscle pain, Chronic fatigue, Hair loss, Depression, Fatigue, Headache, Insomnia, Snoring, Skin problems, Kidney problems, Anxiety, Stress | J67: 1 oz | K67: 15.00 | L67: 11.25 | M67: 10.50 | N67: 9.75 | P67: 0
A68: Valerian Root | D68: Used for insomnia, stress, hysteria, nervousness, menstrual cramps, pain relief, depression. | J68: 1 oz | K68: 15.00 | L68: 11.25 | M68: 10.50 | N68: 9.75 | P68: 0
A69: White Willow Bark | D69: Used for fevers, headaches, rheumatism, arthritis: natural aspirin substitute | J69: 1 oz | K69: 15.00 | L69: 11.25 | M69: 10.50 | N69: 9.75 | P69: 0
A70: Wild Bergamot | D70: Indigestion, flu, colds, sore throat gargle, low grade fevers, insomnia, tension headaches, lowers blood pressure, mild depression , anxiety | J70: 1 oz | K70: 15.00 | L70: 11.25 | M70: 10.50 | N70: 9.75 | P70: 0
A71: Wild Lettuce | D71: Reduces pain. Considered a non-addictive opiate substitute with no side effects. | J71: 1 oz | K71: 15.00 | L71: 11.25 | M71: 10.50 | N71: 9.75 | P71: 0
A72: Wintergreen | D72: Relieves pain, reduces swelling, improves digestion, rejuvenating, respiratory issues | J72: 1 oz | K72: 15.00 | L72: 11.25 | M72: 10.50 | N72: 9.75 | P72: 0
A73: Yarrow | D73: Beneficial for healing wounds, bruises & sprains, urinary tract tonic, pain reliever, stops bleeding. | J73: 1 oz | K73: 15.00 | L73: 11.25 | M73: 10.50 | N73: 9.75 | P73: 0
A74: Yucca | D74: Osteoarthritis, high blood pressure, migraine headaches, inflammation of the intestine (colitis), high cholesterol, stomach disorders, diabetes, poor circulation, and liver and gallbladder disorders | J74: 1 oz | K74: 15.00 | L74: 11.25 | M74: 10.50 | N74: 9.75 | P74: 0
A75: Adrenal Support Blend 1 oz | D75: Ashwagandha Root, Milky Oats, Rhodiola Root | J75: 1 oz. | K75: 15.00 | L75: 11.25 | M75: 10.50 | N75: 9.75 | P75: =K75*O75 -> 0
A76: Congestion Blend 1 oz. | D76: Extracts of mullein flower, bear root, goldenrod, yarrow, lungwort, chaparral, chickweed, echinacea, astragulus, reishi, thyme | J76: 1 oz. | K76: 15.00 | L76: 11.25 | M76: =K76-(K76*30%) -> 10.50 | N76: =K76-(K76*35%) -> 9.75 | P76: 0
A77: Congestion Blend 2 oz. | J77: 2 oz. | K77: 25.00 | L77: 18.75 | M77: 17.50 | N77: 16.25 | P77: =K77*O77 -> 0
A78: Congestion Blend 4 oz. | J78: 4 oz. | K78: 40.00 | L78: 30.00 | M78: 28.00 | N78: 26.00 | P78: =K78*O78 -> 0
N79: 0.00
A80: Cancer Package | D80: Ask for details | K80: 95.00 | L80: 71.25 | M80: 66.50 | N80: 61.75 | P80: =K80*O80 -> 0
A81: Lyme Support Protocol Set | D81: Ask for details | K81: 98.00 | L81: 73.50 | M81: 68.60 | N81: 63.70 | P81: =K81*O81 -> 0
L82: SUBTOTAL | P82: =SUM(P20:P81) -> 0
A83: SPRAYS
A84: Aphrodite's Secret Feminine Mist | D84: A refreshing feminine hygiene spray containing aloe vera, witch hazel, and several essential oils including jasmine & ylang ylang. | J84: 2 oz. | K84: 15.00 | L84: =K84-(K84*25%) -> 11.25 | M84: =K84-(K84*30%) -> 10.50 | N84: =K84-(K84*35%) -> 9.75 | P84: =K84*O84 -> 0
A85: Herbal Relief Throat Spray | D85: A combination of several herbal supplements & peppermint oil for relief from sore throat pain. | J85: 2 oz. | K85: 15.00 | L85: =K85-(K85*25%) -> 11.25 | M85: =K85-(K85*30%) -> 10.50 | N85: =K85-(K85*35%) -> 9.75 | P85: 0
A86: Bewitched Deodorant Spray | D86: Natural Deodorant spray containing witch hazel and essential oils | J86: 2 oz | K86: 12.00 | L86: 9.00 | M86: 8.40 | N86: 7.80 | P86: 0
A87: DreamCatcher Sleep Spray | D87: The combination of magnesium oil and essential oils are formulated to help with sleep issues. Apply to the bottom of your feet at bedtime. | J87: 2 oz | K87: 12.00 | L87: 9.00 | M87: 8.40 | N87: 7.80 | P87: 0
A88: Sunburn Relief Spray | D88: Provides soothing relief from sunburned skin. | J88: 1 oz | K88: 8.00 | L88: 6.00 | M88: 5.60 | N88: 5.20 | P88: 0
A89: Florida Water | D89: Based on the original 1850s recipe. Hoo Doo Holy Water. | J89: 2 oz | K89: 15.00 | L89: 11.25 | M89: 10.50 | N89: 9.75 | P89: 0
A90: Natural Insect Repellent 2oz | D90: Tested in the Chequamegon National Forest where we live. No DEET or other chemicals. Repels biting insects and flies as well as ticks that may carry Lyme disease. Safe for children and pets. Contains several essential oils that repel insects and ticks including lemon eucalyptus. | J90: 2 oz | K90: 5.00 | L90: 3.75 | M90: 3.50 | N90: 3.25 | P90: 0
A91: Natural Insect Repellent 8oz | J91: 8 oz | K91: 15.00 | L91: 11.25 | M91: 10.50 | N91: 9.75 | P91: 0
A92: Palo Santo | D92: Purified water with Palo Santo essential oils.Spiritually purify an area. Smudge a room or person when smoke isn't acceptable. | J92: 2 oz | K92: 15.00 | L92: 11.25 | M92: 10.50 | N92: 9.75 | P92: 0
A93: Patchouli Hippie Spray | D93: Highly requested addition to our line of aromatherapy sprays. | J93: 2 oz. | K93: 12.00 | L93: 9.00 | M93: 8.40 | N93: 7.80 | P93: 0
A94: Sacred Space Spray | D94: Sacred Space Spray is formulated as a spray smudge. Use it in situations where smudging is not an option. Made with sage and sweetgrass in a cedar base, this spray is good for cleansing the air and room atmosphere | J94: 2 oz | K94: 15.00 | L94: 11.25 | M94: 10.50 | N94: 9.75 | P94: 0
A95: Woodland Retreat | D95: Aromatherapy spray containing several essential oils. A scent of the forest. | K95: 12.00 | L95: 9.00 | M95: 8.40 | N95: 7.80 | P95: 0
K96: SUBTOTAL | P96: =SUM(P84:P95) -> 0
A97: ROLL-ONS
A98: Headache Remedy Rollon | D98: Roll-on alleviates headache through direct contact essential oils and aromatherapy. | J98: .3 oz | K98: 10.00 | L98: =K98-(K98*25%) -> 7.50 | M98: =K98-(K98*30%) -> 7.00 | N98: =K98-(K98*35%) -> 6.50 | P98: =K98*O98 -> 0
A99: Jewels Emergency Rollon | D99: For field use in treating insect bites and stings, along with skin irritations. | J99: .3 oz | K99: 10.00 | L99: =K99-(K99*25%) -> 7.50 | M99: =K99-(K99*30%) -> 7.00 | N99: =K99-(K99*35%) -> 6.50 | P99: =K99*O99 -> 0
A100: Stress Relief Rollon | D100: Calming through aromatherapy by application on wrists. | J100: .3 oz | K100: 10.00 | L100: 7.50 | M100: 7.00 | N100: 6.50 | P100: =K100*O100 -> 0
K101: SUBTOTAL | P101: =SUM(P98:P100) -> 0
A102: HAIR & BODY
A103: AcneClear | D103: Apply to the affected area to reduce oils and clear skin of acne. | J103: 1 oz | K103: 15.00 | L103: =K103-(K103*25%) -> 11.25 | M103: =K103-(K103*30%) -> 10.50 | N103: =K103-(K103*35%) -> 9.75 | P103: =K103*O103 -> 0
A104: Natural Toothpaste (Cinnamon) | D104: Contains baking soda, activated charcoal, bentonite clay, golden seal extract, cinnamon bark with cinnamon bark essential oil. | J104: 2 oz | K104: 12.00 | L104: =K104-(K104*25%) -> 9.00 | M104: =K104-(K104*30%) -> 8.40 | N104: =K104-(K104*35%) -> 7.80 | P104: 0
A105: Natural Toothpaste (Mint) | D105: Contains baking soda, activated charcoal, bentonite clay, golden seal extract, peppermint, wintergreen & chocolate mint with peppermint & wintergreen essential oils. | J105: 2 oz. | K105: 12.00 | L105: 9.00 | M105: 8.40 | N105: 7.80 | P105: 0
A106: Bear Beard/Hair Treatment | D106: Bear oil infused with a variety of herbs specifically formulated to improve and grow hair. | J106: 1.8 oz | K106: 8.00 | L106: 6.00 | M106: 5.60 | N106: 5.20 | P106: 0
A107: Fountain of Youth Face Cream | D107: Skin rejuvenation and anti-aging. Softens wrinkles. Very concentrated. | J107: 1 oz | K107: 20.00 | L107: 15.00 | M107: 14.00 | N107: 13.00 | P107: 0
A108: Cucumber Seed Roll-on | D108: Anti-inflammatory, soothing, tonifying effects for the skin. | J108: .3 oz | K108: 8.00 | L108: 6.00 | M108: 5.60 | N108: 5.20 | P108: 0
A109: Heel Healing Balm with Heel Cup | D109: Formulated to moisturize and heal cracked heel. Includes a pair of silicone heel cups in the package. Please note Black or White when ordering | J109: 1.5 oz | K109: 12.00 | L109: 9.00 | M109: 8.40 | N109: 7.80 | P109: 0
A110: Smoot & Silky Detangler & Hair Conditioner | D110: Formulated with aloe vera, water, argan oil, avocado oil, & silk protein | J110: 8 oz | K110: 15.00 | L110: 11.25 | M110: 10.50 | N110: 9.75 | P110: 0
A111: Dragons Blood Cream | D111: Effective moisturizing for dry scaly skin with wildcrafted dragon's blood extract. | J111: 2 oz | K111: 28.00 | L111: 21.00 | M111: 19.60 | N111: 18.20 | P111: 0
A112: Happy Hippie Hemp Body Butter | D112: Feelin' groovy! Skin rejuvenation and anti-aging moisturizing cream. | J112: 2 oz | K112: 15.00 | L112: 11.25 | M112: 10.50 | N112: 9.75 | P112: 0
A113: Chaga Body Butter | D113: Chaga Body Butter is developed to help soften and condition the skin with a number of organic herbs and oils. | J113: 9 oz | L113: 0.00 | M113: 0.00 | N113: 0.00 | P113: 0
A114: Chaga Body Scrub | D114: Chaga Body Scrub is developed to be used in the shower or sauna. Helps open and cleanse pores. | J114: 9 oz | L114: 0.00 | M114: 0.00 | N114: 0.00 | P114: 0
A115: Coltsfoot Toner Rollon | D115: Anti-microbial, anti-inflammatory, tonifying effects for healthy skin. | J115: .3 oz | K115: 8.00 | L115: 6.00 | M115: 5.60 | N115: 5.20 | P115: 0
A116: Kissable Lips Balm (Sweet Orange) | D116: Soothing blend of essential oils in a coconut and beeswax base. | J116: .3 oz | K116: 4.00 | L116: 3.00 | M116: 2.80 | N116: 2.60 | P116: 0
A117: Kissable Lips Balm (Peppermint) | J117: .3 oz | K117: 4.00 | L117: 3.00 | M117: 2.80 | N117: 2.60 | P117: 0
A118: Sunshiney Day Sunscreen | D118: Zinc oxide (non-nano) with hemp or jojoba oil with coconut oil, raspberry seed, carrot seed and frankincense essential oils. 30-50 SPF rating | J118: 2 oz | K118: 6.00 | L118: 4.50 | M118: 4.20 | N118: 3.90 | P118: 0
A119: Sunshiney Day Sunscreen | J119: 9 oz | K119: 18.00 | L119: 13.50 | M119: 12.60 | N119: 11.70 | P119: 0
A120: Organic Hand Sanitizer | D120: All natural with essential oils. Cleans and sanitizes with no harmful side effects. | J120: 2 oz | K120: 6.00 | L120: 4.50 | M120: =K120-(K120*30%) -> 4.20 | N120: 3.90 | P120: 0
A121: Hair Conditioner | L121: =K121-(K121*25%) -> 0.00 | P121: 0
A122: Shampoo | L122: 0.00 | P122: 0
A123: Body Wash | L123: 0.00 | P123: 0
A124: Guest Package (Single) | L124: 0.00 | P124: 0
L125: 0.00 | P125: 0
K126: SUBTOTAL | P126: =SUM(P103:P125) -> 0
A127: SOAPS
A128: Awaken | D128: Lemongrass and Neroli | J128: 4 oz | K128: 5.00 | L128: =K128-(K128*25%) -> 3.75 | M128: =K128-(K128*30%) -> 3.50 | N128: =K128-(K128*35%) -> 3.25 | P128: =O128*K128 -> 0
A129: Bayberry Yule | D129: Bayberry | J129: 4 oz | K129: 5.00 | L129: =K129-(K129*25%) -> 3.75 | M129: =K129-(K129*30%) -> 3.50 | N129: =K129-(K129*35%) -> 3.25
A130: Birch Tar | D130: Birch Tar Oil | J130: 4 oz | K130: 5.00 | L130: 3.75 | M130: 3.50 | N130: 3.25 | P130: =O130*K130 -> 0
A131: Carrot Seed and Rose Geranium | D131: Carrot Seed and Rose Geranium | J131: 4 oz | K131: 5.00 | L131: 3.75 | M131: 3.50 | N131: 3.25 | P131: =O131*K131 -> 0
A132: Charcoal Tea Tree | D132: Activated Charcoal with Tea Tree for Skin Clearing | J132: 4 oz | K132: 5.00 | L132: 3.75 | M132: 3.50 | N132: 3.25
A133: Cowboy Up | D133: Nagamatha and Red Cedar | J133: 4 oz | K133: 5.00 | L133: 3.75 | M133: 3.50 | N133: 3.25 | P133: =O133*K133 -> 0
A134: Cucumber Seed Aloe | D134: Cucumber Seed, Sea Buckthorn and Aloe | J134: 4 oz | K134: 5.00 | L134: 3.75 | M134: 3.50 | N134: 3.25 | P134: =O134*K134 -> 0
A135: Dragon's Blood | D135: Dragons Blood Extract and Ancient Wisdom Blend | J135: 4 oz | K135: 5.00 | L135: 3.75 | M135: 3.50 | N135: 3.25 | P135: =O135*K135 -> 0
A136: EuLemGras | D136: Eucalyptus & Lemongrass | J136: 4 oz | K136: 5.00 | L136: 3.75 | M136: 3.50 | N136: 3.25
A137: Hippie | D137: Patchouli | J137: 4 oz | K137: 5.00 | L137: 3.75 | M137: 3.50 | N137: 3.25 | P137: =O137*K137 -> 0
A138: Hunter's Scent | D138: Anise | J138: 4 oz | K138: 5.00 | L138: 3.75 | M138: 3.50 | N138: 3.25 | P138: 0
A139: Lovestruck | D139: Rose Essence | J139: 4 oz | K139: 5.00 | L139: 3.75 | M139: 3.50 | N139: 3.25 | P139: 0
A140: Margo | D140: Rosemary and Peppermint | J140: 4 oz | K140: 5.00 | L140: 3.75 | M140: 3.50 | N140: 3.25 | P140: 0
A141: Meditation | D141: Frankincense and Myrrh | J141: 4 oz | K141: 5.00 | L141: 3.75 | M141: 3.50 | N141: 3.25 | P141: 0
A142: Mother Earth Detox | D142: Moroccan Red Clay and Lemongrass | J142: 4 oz | K142: 5.00 | L142: 3.75 | M142: 3.50 | N142: 3.25 | P142: 0
A143: Namaste | D143: Sandalwood | J143: 4 oz | K143: 5.00 | L143: 3.75 | M143: 3.50 | N143: 3.25 | P143: 0
A144: Palo Santo | D144: Palo Santo Oil, Himalayan Pink Salt, and Hemp Oil | J144: 4 oz | K144: 5.00 | L144: 3.75 | M144: 3.50 | N144: 3.25 | P144: 0
A145: Papa's Pine Tar/Oatmeal | D145: Pine Tar, Balsam Oil, ground Oatmeal | J145: 4 oz | K145: 5.00 | L145: 3.75 | M145: 3.50 | N145: 3.25 | P145: 0
A146: Passion | D146: Sandalwood and Jasmine | J146: 4 oz | K146: 5.00 | L146: 3.75 | M146: 3.50 | N146: 3.25 | P146: 0
A147: Peace | D147: Nag Champa | J147: 4 oz | K147: 5.00 | L147: 3.75 | M147: 3.50 | N147: 3.25 | P147: 0
A148: Poison Ivy Relief | D148: JewelWeed and various other herbs , Green Clay, and essential oils | J148: 2 oz | K148: 5.00 | L148: 3.75 | M148: 3.50 | N148: 3.25 | P148: 0
A149: Remembrance | D149: Rosemary and Lavender | J149: 4 oz | K149: 5.00 | L149: 3.75 | M149: 3.50 | N149: 3.25 | P149: 0
A150: Shaman | D150: Frankincense & 4 Elements Blend | J150: 4 oz | K150: 5.00 | L150: 3.75 | M150: 3.50 | N150: 3.25 | P150: 0
A151: Spirit | D151: Sweet Grass and Sage | J151: 4 oz | K151: 5.00 | L151: 3.75 | M151: 3.50 | N151: 3.25 | P151: 0
A152: Tranquility | D152: Lavender Buds and Oil | J152: 4 oz | K152: 5.00 | L152: 3.75 | M152: 3.50 | N152: 3.25 | P152: 0
A153: Turmeric | D153: Hawaiian Red Turmeric with Orange Oil | J153: 4 oz | K153: 5.00 | L153: 3.75 | M153: 3.50 | N153: 3.25 | P153: 0
A154: Uplifting | D154: Wild Bergamot and Lemongrass | J154: 4 oz | K154: 5.00 | L154: 3.75 | M154: 3.50 | N154: 3.25 | P154: 0
A155: Warrior | D155: Cinnamon Bark, Clove, Lemon, Eucalyptus, Rosemary Oils | J155: 4 oz | K155: 5.00 | L155: 3.75 | M155: 3.50 | N155: 3.25 | P155: 0
A156: Wild & Free | D156: Wild Orange and Patchouli | J156: 4 oz | K156: 5.00 | L156: 3.75 | M156: 3.50 | N156: 3.25 | P156: 0
A157: Winter Wind | D157: Peppermint & Wintergreen | J157: 4 oz | K157: 5.00 | M157: 3.50
A158: Woodlands | D158: Cedar and Balsam with Chaga granules | J158: 4 oz | K158: 5.00 | L158: 3.75 | M158: 3.50 | N158: 3.25 | P158: 0
K159: SUBTOTAL | O159: =SUM(O128:O158) -> 0 | P159: =SUM(P128:P158) -> 0
A160: HERBS & TEAS
A161: Ashwagandha Capsules (725 mg) | D161: Organic crushed ashwagandha in capsules (30 count pkg.) | J161: 30 ct | K161: 12.00 | L161: =K161-(K161*25%) -> 9.00 | M161: =K161-(K161*30%) -> 8.40 | N161: =K161-(K161*35%) -> 7.80 | P161: =K161*O161 -> 0
A162: Maga Capsules (725 mg) | D162: Organic crushed maca in capsules (30 count pkg.) | J162: 30 ct | K162: 12.00 | L162: =K162-(K162*25%) -> 9.00 | M162: =K162-(K162*30%) -> 8.40 | N162: =K162-(K162*35%) -> 7.80 | P162: 0
A163: Noni Capsules (725 mg) | D163: Organic crushed noni berries in capsules (30 count pkg.) | J163: 30 ct | K163: 12.00 | L163: 9.00 | M163: 8.40 | N163: 7.80 | P163: 0
A164: Borealis Brew | D164: Roasted Chicory, wild harvested Chaga, Dandelion Root, wild harvested Reishi, Cinnamon, Galanga Ginger, Hawaiian Red Turmeric, Nutmeg, Black Pepper. Makes 24 servings | J164: 4 oz | K164: 19.00 | L164: =K164-(K164*25%) -> 14.25 | M164: =K164-(K164*30%) -> 13.30 | N164: =K164-(K164*35%) -> 12.35 | P164: =K164*O164 -> 0
A165: Cistus Tea | D165: Rock Rose for detoxifying the body. | J165: 1 oz | K165: 12.00 | L165: 9.00 | M165: 8.40 | N165: 7.80 | P165: 0
A166: Essiac Tea | D166: 1850s recipe. Helps with detoxification. Each bag makes 4 8 oz. servings. | J166: 2 oz | K166: 24.00 | L166: 18.00 | M166: 16.80 | N166: 15.60 | P166: 0
A167: Moringa Tea | D167: Anti-inflammatory, anti-oxidant, digestive aid, uplifitng, may lower cholesterol, heart healthy benefits, supports brain health, protects liver. | J167: 1 oz | K167: 8.00 | L167: 6.00 | M167: 5.60 | N167: 5.20 | P167: 0
A168: Relax Tea | D168: Contains a combination of herbs to relax and help with sleep. | J168: 1 oz | K168: 8.00 | L168: 6.00 | M168: 5.60 | N168: 5.20 | P168: 0
A169: Tummy Tea | D169: Contains a combination of herbs to settle the digestive system. | J169: 1 oz | K169: 8.00 | L169: 6.00 | M169: 5.60 | N169: 5.20 | P169: 0
A170: Sage | D170: Hand picked in the North Dakota Badlands | J170: 1 oz | K170: 6.00 | L170: 4.50 | M170: 4.20 | N170: 3.90 | P170: 0
L171: SUBTOTAL | P171: =SUM(P164:P170) -> 0
A172: EQUINE & PETS
A173: Equine Fly Spray Concentrate | D173: Contains the active ingredients to protect your horse from biting flies. Mix with 2 cups each water and apple cider vinegar in a spray bottle. | J173: 2 oz | K173: 15.00 | L173: =K173-(K173*25%) -> 11.25 | M173: =K173-(K173*30%) -> 10.50 | N173: =K173-(K173*35%) -> 9.75 | P173: =K173*O173 -> 0
A174: Equine Fly Spray (16 oz) | D174: Contains the active ingredients to protect your horse from biting flies. | J174: 16 oz | K174: 24.00 | L174: =K174-(K174*25%) -> 18.00 | M174: =K174-(K174*30%) -> 16.80 | N174: =K174-(K174*35%) -> 15.60 | P174: 0
A175: Equine Balancing Spray | D175: Formulated to calm and balance the chakras of both the horse and the rider, to help put the two at ease and in sync. | J175: 2 oz | K175: 15.00 | L175: 11.25 | M175: 10.50 | N175: 9.75 | P175: 0
A176: Horse Healing Salve (4 oz) | D176: Beneficial wound care including cuts, scrapes, abrasions. Antibacterial and anti-inflammatory. Reduces infection and relieves pain. | J176: 4 oz | K176: 18.00 | L176: 13.50 | M176: 12.60 | N176: 11.70 | P176: 0
A177: Horse Healing Salve (9 oz) | J177: 9 oz | K177: 32.00 | L177: 24.00 | M177: 22.40 | N177: 20.80 | P177: 0
A178: Triple A Detangler 8 oz | D178: Spray on and brush through to detangle mane and tail. Also use on the horse's coat for an improved sheen. | J178: 8 oz | K178: 15.00 | L178: 11.25 | M178: 10.50 | N178: 9.75 | P178: 0
N179: 0.00
A180: Canine Hot Spot | D180: Soothing, safe remedy for hot spots on dogs. Works well to relieve the itch and burn of hot spots, while also stopping them from licking and irritating the affected area. | J180: 1 oz | K180: 15.00 | L180: 11.25 | M180: 10.50 | N180: =K180-(K180*35%) -> 9.75 | P180: 0
A181: Horse Soothing Liniment | D181: Spray on and rub into the affected area to relieve pain from strained muscles or joints. Also promotes healing and anti-inflammatory. Beneficial for sore and overworked muscles. Assists circulation into an injured area. | J181: 8 oz | K181: 18.00 | L181: 13.50 | M181: 12.60 | N181: 11.70 | P181: 0
P182: =SUM(P173:P181) -> 0
J183: SUBTOTAL | P183: =SUM(P18,P96,P101,P121,P82,P159,P171,P182) -> 0
D184: MUST HAVE TAX ID# ABOVE FOR DISCOUNT | J184: WHLSLE DISCOUNT | P184: =IF(P183<225,0,IF(P183>=500,35%*P183,IF(P183>=375,30%*P183,IF(P183>=250,25%*P183)))) -> 0
K185: TOTAL | O185: =P183-P184 -> 0
A187: Our products are for the benefit of supporting recovery of a vast array of illnesses and ailments. We are not medical professionals and do not claim any cures from disease through the use of our products. Products have not been tested by the FDA and are not intended to cure or prevent disease. All information is for educational purposes only.
K190: Rev.Date | L190: 2022-04-05
A191: Thank you for your business!
A192: ~ Nancy & Larry Kinnett ~
A193: Borealis Holistics
